bitfinex/quotes_SOLUSD_20250719
["timestamp","ask_amount","ask_price","bid_price","bid_amount"]
[1752956976700,39.1,177.77,177.76,0.68]
[1752956977199,39.1,177.77,177.75,2.97720359]
[1752956978535,44.72538007,177.77,177.75,2.97720359]
[1752956981737,44.72538007,177.77,177.76,0.68]
[1752956983417,44.72538007,177.77,177.75,2.97720359]
[1752956983617,44.72538007,177.77,177.76,0.68]
[1752956983816,44.72538007,177.77,177.76,2.97720359]
[1752956984020,39.1,177.77,177.76,2.97720359]
[1752956985218,39.1,177.77,177.76,0.68]
[1752956985421,39.1,177.77,177.76,2.97720359]
[1752956988936,39.1,177.77,177.76,2.29720359]
[1752956990018,44.7252461,177.77,177.76,2.29720359]
[1752956992619,0.06,177.81,177.77,42.78468397]
[1752956992817,0.06,177.81,177.8,19.08188756]
[1752956993220,0.06,177.81,177.8,0.66]
[1752956993535,0.06,177.81,177.8,28.95720359]
[1752956993706,0.06,177.81,177.8,26.66]
[1752956993911,5.68398065,177.81,177.8,28.29720359]
[1752956994319,5.68398065,177.81,177.78,2.95720359]
[1752956994519,39.1,177.8,177.78,2.95720359]
[1752956994733,0.06,177.81,177.79,28.95720359]
[1752956994943,0.06,177.83,177.82,16.78468397]
[1752956995118,0.06,177.83,177.82,19.08188756]
[1752956995319,0.06,177.83,177.82,19.74188756]
[1752956996839,0.06,177.83,177.82,25.36555193]
[1752956997524,0.06,177.83,177.82,19.74188756]
[1752956998153,0.06,177.83,177.75,0.03]
[1752956998448,39.1,177.82,177.79,2.29720359]
[1752956998750,39.1,177.82,177.79,28.95720359]
[1752956998934,39.1,177.82,177.79,26.0]
[1752956998935,5.62398065,177.81,177.79,26.0]
[1752957000045,5.62398065,177.81,177.77,2.95720359]
[1752957000229,5.62398065,177.81,177.76,16.78468397]
[1752957000230,2.29720359,177.79,177.78,26.0]
[1752957000434,41.39720359,177.79,177.75,0.69]
[1752957000631,39.1,177.79,177.76,0.66]
[1752957001246,39.1,177.79,177.76,26.66]
[1752957001442,0.06,177.83,177.79,16.78468397]
[1752957001638,0.06,177.83,177.82,3.58715773]
[1752957001838,0.06,177.83,177.81,3.58715773]
[1752957002358,5.68338453,177.83,177.81,3.58715773]
[1752957002725,0.06,177.83,177.81,4.24715773]
[1752957003250,39.16,177.83,177.81,4.24715773]
[1752957004025,44.78353535,177.83,177.81,0.66]
[1752957004227,44.78353535,177.83,177.81,4.24715773]
[1752957006152,44.78353535,177.83,177.81,0.66]
[1752957007356,5.68353535,177.83,177.8,3.58715773]
[1752957007537,0.06,177.83,177.82,43.44468397]
[1752957007742,0.06,177.83,177.82,30.24715773]
[1752957008537,0.06,177.83,177.82,26.66]
[1752957008955,3.64715773,177.83,177.8,26.0]
[1752957009547,5.62366437,177.82,177.8,26.0]
[1752957010158,39.1,177.81,177.8,26.0]
[1752957010959,39.1,177.81,177.8,30.24715773]
[1752957011453,39.1,177.81,177.8,26.66]
[1752957013648,44.72398065,177.81,177.8,26.66]
[1752957014361,5.62375068,177.82,177.8,26.66]
[1752957014541,39.08,177.81,177.8,29.58715773]
[1752957015054,39.08,177.81,177.8,26.0]
[1752957015256,39.08,177.81,177.8,26.66]
[1752957016558,0.06,177.83,177.8,47.0318417]
[1752957016759,0.06,177.83,177.82,20.3718417]
[1752957017147,0.06,177.83,177.82,21.0318417]
[1752957017542,5.68334814,177.83,177.82,0.66]
[1752957017864,5.68334814,177.83,177.81,26.0]
[1752957018248,5.68334814,177.83,177.81,26.66]
[1752957018749,5.68334814,177.83,177.81,26.0]
[1752957019850,39.16,177.83,177.82,4.24715773]
[1752957020257,39.16,177.83,177.82,0.66]
[1752957020658,39.16,177.83,177.82,4.24715773]
[1752957021873,39.1,177.85,177.82,4.24715773]
[1752957022082,39.1,177.85,177.83,0.66]
[1752957022439,0.06,177.89,177.83,16.78468397]
[1752957022646,3.64715773,177.89,177.84,4.24715773]
[1752957022947,3.58715773,177.86,177.81,26.66]
[1752957023158,39.1,177.85,177.82,16.78468397]
[1752957023358,42.68715773,177.85,177.82,16.78468397]
[1752957023562,42.68715773,177.85,177.82,17.44468397]
[1752957024259,9.21018966,177.84,177.82,17.44468397]
[1752957024457,5.62303193,177.84,177.82,17.44468397]
[1752957028767,5.62303193,177.84,177.78,39.4]
[1752957028977,9.21018966,177.84,177.81,16.78468397]
[1752957029275,9.21018966,177.84,177.81,17.44468397]
[1752957031580,9.27018966,177.84,177.81,17.44468397]
[1752957032848,5.68303193,177.84,177.81,16.78468397]
[1752957033056,5.68303193,177.84,177.82,0.66]
[1752957034073,5.68303193,177.84,177.83,0.66]
[1752957038607,5.68303193,177.84,177.83,4.24715773]
[1752957039333,5.68303193,177.84,177.83,0.66]
[1752957044434,5.68303193,177.84,177.8,16.81468397]
[1752957044604,5.68303193,177.84,177.82,0.66]
[1752957044803,9.27018966,177.84,177.82,0.66]
[1752957045107,5.68303193,177.84,177.82,0.66]
[1752957045311,5.68303193,177.84,177.83,0.66]
[1752957049675,44.78303193,177.84,177.83,0.66]
[1752957050815,44.78303193,177.84,177.81,0.66]
[1752957050816,48.37018966,177.84,177.81,0.66]
[1752957051008,3.58715773,177.82,177.8,0.03]
[1752957051312,3.58715773,177.81,177.8,0.03]
[1752957051819,5.62398065,177.81,177.8,0.03]
[1752957052822,44.72398065,177.81,177.8,0.03]
[1752957053945,48.31113838,177.81,177.8,0.03]
[1752957061445,48.43113838,177.81,177.8,0.03]
[1752957061840,5.20475773,177.8,177.76,0.03]
[1752957062036,3.58715773,177.77,177.76,0.03]
[1752957062242,42.68715773,177.77,177.76,0.03]
[1752957062445,42.80715773,177.77,177.76,0.03]
[1752957063248,48.43240383,177.77,177.76,0.03]
[1752957066855,44.8452461,177.77,177.76,0.03]
[1752957067063,48.31240383,177.77,177.76,0.03]
[1752957068857,9.21240383,177.77,177.76,0.03]
[1752957069067,48.31240383,177.77,177.76,0.03]
[1752957069253,9.21240383,177.77,177.76,0.03]
[1752957069562,48.43240383,177.77,177.76,0.03]
[1752957072269,48.31240383,177.77,177.76,0.03]
[1752957075465,48.43240383,177.77,177.76,0.03]
[1752957076047,48.31240383,177.77,177.76,0.03]
[1752957077666,48.43240383,177.77,177.76,0.03]
[1752957079053,48.31240383,177.77,177.76,0.03]
[1752957084955,48.31240383,177.77,177.76,0.73]
[1752957085681,48.31240383,177.77,177.76,0.03]
[1752957086568,48.31240383,177.77,177.76,0.73]
[1752957088577,5.6252461,177.77,177.76,0.73]
[1752957088896,39.1,177.77,177.76,4.31715773]
[1752957089059,39.1,177.77,177.76,0.73]
[1752957089695,5.6246133,177.79,177.76,0.73]
[1752957089990,39.1,177.78,177.76,0.73]
[1752957090687,5.6252461,177.77,177.76,0.73]
[1752957090870,5.6252461,177.77,177.76,0.03]
[1752957091310,5.6252461,177.77,177.76,0.73]
[1752957095901,5.6252461,177.77,177.76,0.03]
[1752957097291,9.21252671,177.77,177.76,0.03]
[1752957098584,9.33252671,177.77,177.76,0.03]
[1752957099500,9.21252671,177.77,177.76,0.03]
[1752957102005,9.21252671,177.77,177.75,0.03]
[1752957102222,42.80728061,177.76,177.75,0.03]
[1752957102392,42.80728061,177.76,177.75,1e-08]
[1752957103413,42.80728061,177.76,177.72,0.03]
[1752957103603,3.58728061,177.73,177.72,0.03]
[1752957103795,42.68728061,177.73,177.72,0.03]
[1752957103997,48.31379273,177.73,177.72,0.03]
[1752957104615,59.49279243,177.73,177.68,26.0]
[1752957104794,63.08007304,177.73,177.68,26.0]
[1752957104995,3.58728061,177.72,177.68,26.0]
[1752957105195,39.1,177.71,177.68,26.0]
[1752957105502,39.1,177.71,177.65,0.03]
[1752957105706,43.38728061,177.71,177.66,20.15728061]
[1752957105909,43.38728061,177.71,177.66,3.61728061]
[1752957106110,5.62746201,177.7,177.66,0.03]
[1752957106303,39.1,177.69,177.66,0.03]
[1752957106511,43.38728061,177.69,177.66,0.03]
[1752957106899,4.28728061,177.68,177.66,0.03]
[1752957107201,39.1,177.67,177.66,0.03]
[1752957108106,44.72841222,177.67,177.66,0.73]
[1752957108412,5.62841222,177.67,177.66,0.73]
[1752957108609,1.6036,177.72,177.66,4.31728061]
[1752957108924,23.28228932,177.71,177.67,0.7]
[1752957109123,39.1,177.7,177.67,0.7]
[1752957109509,39.1,177.7,177.68,0.7]
[1752957109923,19.69500871,177.71,177.69,0.7]
[1752957110106,39.1,177.7,177.69,0.7]
[1752957110305,39.1,177.7,177.68,0.7]
[1752957111010,5.62777871,177.69,177.68,0.7]
[1752957112021,5.62777871,177.69,177.66,3.61728061]
[1752957112228,39.1,177.68,177.67,0.7]
[1752957114248,44.72809545,177.68,177.67,0.7]
[1752957117632,49.01537606,177.68,177.66,0.03]
[1752957117935,48.31537606,177.68,177.66,0.03]
[1752957118637,44.72809545,177.68,177.66,0.03]
[1752957119218,44.72809545,177.68,177.66,0.74]
[1752957119540,39.12,177.67,177.66,0.03]
[1752957120922,39.12,177.67,177.66,0.74]
[1752957121463,0.7,177.7,177.66,4.32728061]
[1752957121464,5.62746201,177.7,177.66,4.32728061]
[1752957121760,39.12,177.69,177.68,3.58728061]
[1752957121914,39.12,177.69,177.67,4.29728061]
[1752957122108,39.12,177.69,177.68,0.71]
[1752957123643,44.74777871,177.69,177.68,0.71]
[1752957124139,44.74777871,177.69,177.66,4.32728061]
[1752957124321,45.44777871,177.69,177.66,4.32728061]
[1752957124726,45.44777871,177.69,177.66,0.74]
[1752957124932,49.03505932,177.69,177.66,0.74]
[1752957126644,49.03505932,177.69,177.66,0.03]
[1752957127228,48.33505932,177.69,177.66,0.03]
[1752957127434,44.74777871,177.69,177.66,0.03]
[1752957127858,44.74777871,177.69,177.66,0.74]
[1752957128948,5.62841222,177.67,177.66,0.03]
[1752957129162,48.33569283,177.67,177.66,0.03]
[1752957129460,49.03569283,177.67,177.66,0.03]
[1752957129956,45.44841222,177.67,177.66,0.03]
[1752957130649,44.74841222,177.67,177.66,0.03]
[1752957132236,44.74841222,177.67,177.66,0.74]
[1752957132841,0.06,177.71,177.66,4.32728061]
[1752957133028,39.12,177.7,177.69,3.58728061]
[1752957133527,39.12,177.7,177.69,4.29728061]
[1752957133936,44.74746201,177.7,177.69,4.29728061]
[1752957135857,44.74746201,177.7,177.69,4.05369111]
[1752957136528,44.74746201,177.7,177.69,0.71]
[1752957136924,44.74746201,177.7,177.68,3.58728061]
[1752957137128,44.74746201,177.7,177.67,0.71]
[1752957137330,44.74746201,177.7,177.67,26.71]
[1752957137541,48.33474262,177.7,177.67,0.71]
[1752957137875,49.03474262,177.7,177.66,0.03]
[1752957138166,4.28728061,177.69,177.66,0.03]
[1752957138377,42.68728061,177.68,177.66,0.03]
[1752957138664,39.8,177.68,177.66,0.03]
[1752957139568,5.62841222,177.67,177.66,0.03]
[1752957141564,5.62787047,177.69,177.66,4.32728061]
[1752957141887,44.72755015,177.7,177.68,3.58728061]
[1752957142266,44.72755015,177.7,177.69,0.71]
[1752957144371,0.06,177.71,177.7,16.78468397]
[1752957144696,0.06,177.71,177.7,20.37196458]
[1752957145070,0.06,177.71,177.7,21.08196458]
[1752957145471,0.06,177.71,177.7,26.70942659]
[1752957146802,0.06,177.71,177.7,27.57217279]
[1752957148320,0.06,177.74,177.73,42.78468397]
[1752957148629,0.06,177.74,177.73,85.47196458]
[1752957149002,0.06,177.74,177.73,86.18196458]
[1752957149593,0.06,177.78,177.77,42.78468397]
[1752957149806,0.06,177.78,177.77,85.77196458]
[1752957150327,0.06,177.78,177.77,86.48196458]
[1752957151598,0.06,177.78,177.77,92.10721068]
[1752957153933,0.06,177.78,177.77,43.79468397]
[1752957154102,0.06,177.78,177.77,86.48196458]
[1752957156643,0.06,177.78,177.77,86.18196458]
[1752957157741,0.06,177.78,177.77,85.47196458]
[1752957157947,0.06,177.78,177.77,81.88468397]
[1752957158147,0.06,177.78,177.77,42.78468397]
[1752957159153,0.06,177.78,177.77,47.08196458]
[1752957164464,0.06,177.78,177.77,46.37196458]
[1752957164873,0.72,177.78,177.75,0.3]
[1752957165075,0.66,177.77,177.73,16.78468397]
[1752957165277,5.62556255,177.76,177.73,17.49468397]
[1752957166575,0.06,177.78,177.74,4.29728061]
[1752957166962,5.68514966,177.78,177.75,4.29728061]
[1752957167162,5.68514966,177.78,177.73,60.16196458]
[1752957167478,4.24728061,177.77,177.73,56.57468397]
[1752957167662,4.24728061,177.77,177.73,17.49468397]
[1752957167864,0.66,177.76,177.73,16.78468397]
[1752957168979,6.2857712,177.76,177.73,16.78468397]
[1752957170159,5.6257712,177.76,177.73,17.49468397]
[1752957170982,5.6252461,177.77,177.73,17.49468397]
[1752957171174,5.6252461,177.77,177.73,21.08196458]
[1752957171378,6.2852461,177.77,177.73,21.08196458]
[1752957173589,0.69,177.76,177.73,16.78468397]
[1752957175280,5.6252461,177.77,177.73,17.49468397]
[1752957175488,5.6252461,177.77,177.73,21.08196458]
[1752957175987,5.6252461,177.77,177.74,0.71]
[1752957178785,5.6252461,177.77,177.75,0.71]
[1752957180765,5.6252461,177.77,177.73,20.37196458]
[1752957180969,5.6252461,177.77,177.74,0.71]
[1752957181201,5.6252461,177.77,177.73,20.37196458]
[1752957181392,0.69,177.76,177.73,20.37196458]
[1752957181567,5.6252461,177.77,177.73,4.29728061]
[1752957181770,5.6252461,177.77,177.74,4.29728061]
[1752957181972,5.6252461,177.77,177.75,0.71]
[1752957182287,5.68503603,177.78,177.76,3.58728061]
[1752957182594,0.06,177.78,177.77,4.29728061]
[1752957182965,0.06,177.78,177.77,30.29728061]
[1752957184374,0.06,177.78,177.77,26.71]
[1752957184574,0.06,177.78,177.77,30.29728061]
[1752957188336,0.06,177.78,177.77,26.71]
[1752957188626,0.06,177.78,177.77,30.29728061]
[1752957192110,0.06,177.78,177.77,26.0]
[1752957193343,5.68492968,177.78,177.77,26.0]
[1752957193760,6.37492968,177.78,177.75,0.3]
[1752957194049,0.69,177.77,177.76,26.0]
[1752957194846,0.69,177.77,177.75,26.3]
[1752957195053,5.62556255,177.76,177.75,26.3]
[1752957195762,5.62535047,177.77,177.75,26.3]
[1752957196438,5.62535047,177.77,177.75,27.01]
[1752957197159,5.68492968,177.78,177.76,0.71]
[1752957197548,0.06,177.78,177.77,0.71]
[1752957197732,0.06,177.78,177.77,4.29728061]
[1752957198363,0.06,177.78,177.77,0.71]
[1752957199537,0.06,177.78,177.77,4.29728061]
[1752957201987,0.06,177.78,177.77,3.58728061]
[1752957202165,0.06,177.78,177.77,4.29728061]
[1752957208089,0.06,177.78,177.76,4.30728061]
[1752957208303,0.77,177.78,177.74,30.60728061]
[1752957208464,0.71,177.77,177.74,27.02]
[1752957208788,0.71,177.77,177.75,0.03]
[1752957209097,0.06,177.78,177.75,0.03]
[1752957209303,6.39492968,177.78,177.75,0.03]
[1752957210555,5.68492968,177.78,177.75,4.33728061]
[1752957211061,5.68492968,177.78,177.76,3.58728061]
[1752957211268,0.06,177.78,177.76,3.58728061]
[1752957211560,0.06,177.78,177.77,0.72]
[1752957213993,0.06,177.78,177.77,4.30728061]
[1752957214198,0.06,177.78,177.77,30.30728061]
[1752957223216,0.77,177.78,177.76,3.58728061]
[1752957223801,0.06,177.78,177.76,3.58728061]
[1752957224004,0.71,177.77,177.75,0.03]
[1752957224311,0.06,177.78,177.75,0.03]
[1752957224511,0.77,177.78,177.75,0.03]
[1752957225232,4.29728061,177.77,177.75,0.03]
[1752957225434,0.71,177.77,177.75,0.03]
[1752957226433,5.68517685,177.78,177.75,0.03]
[1752957226933,6.39517685,177.78,177.75,0.03]
[1752957227141,6.39517685,177.78,177.75,3.61728061]
[1752957227707,0.06,177.78,177.76,0.72]
[1752957228015,5.68492978,177.78,177.76,4.30728061]
[1752957228216,0.06,177.78,177.77,0.72]
[1752957228432,0.06,177.78,177.77,4.30728061]
[1752957229715,0.06,177.78,177.77,0.72]
[1752957229939,0.06,177.78,177.76,3.58728061]
[1752957230342,0.06,177.78,177.76,4.30728061]
[1752957230708,0.06,177.78,177.76,3.58728061]
[1752957231120,0.77,177.78,177.75,3.61728061]
[1752957231646,6.39517608,177.78,177.75,3.61728061]
[1752957232652,5.68517608,177.78,177.75,3.61728061]
[1752957232948,0.06,177.78,177.76,4.30728061]
[1752957233129,0.06,177.78,177.77,0.72]
[1752957233531,5.6849928,177.78,177.75,4.33728061]
[1752957234062,0.06,177.78,177.75,0.75]
[1752957234267,0.06,177.78,177.76,0.72]
[1752957235646,0.06,177.78,177.77,0.72]
[1752957237223,0.06,177.78,177.76,3.58728061]
[1752957237437,0.06,177.78,177.76,4.30728061]
[1752957238671,0.06,177.78,177.77,0.72]
[1752957239471,0.06,177.78,177.77,4.30728061]
[1752957240141,0.06,177.78,177.77,3.58728061]
[1752957240344,0.06,177.78,177.77,4.30728061]
[1752957240743,0.06,177.78,177.77,30.30728061]
[1752957247574,0.06,177.78,177.77,26.72]
[1752957247792,0.06,177.78,177.77,30.30728061]
[1752957252669,0.06,177.78,177.77,35.93252671]
[1752957254075,0.06,177.78,177.77,30.30728061]
[1752957255978,0.06,177.78,177.77,52.71721068]
[1752957256480,0.06,177.78,177.77,47.09196458]
[1752957258981,0.06,177.78,177.77,45.79938663]
[1752957261578,0.06,177.78,177.77,43.50468397]
[1752957261789,0.06,177.78,177.77,45.07938663]
[1752957262102,0.06,177.78,177.77,28.29470266]
[1752957262773,0.06,177.78,177.77,26.0]
[1752957262975,0.06,177.78,177.77,28.29470266]
[1752957263398,0.06,177.78,177.77,26.0]
[1752957263594,5.92451634,177.8,177.78,2.29470266]
[1752957264793,5.62451634,177.8,177.78,2.29470266]
[1752957265897,5.68398065,177.81,177.78,2.29470266]
[1752957266591,5.68398065,177.81,177.79,2.29470266]
[1752957266771,0.06,177.81,177.8,3.01470266]
[1752957267192,0.06,177.81,177.8,2.29470266]
[1752957267397,0.06,177.81,177.79,3.01470266]
[1752957268618,0.06,177.81,177.79,2.29470266]
[1752957269288,0.06,177.81,177.78,39.08]
[1752957269606,0.06,177.81,177.77,2.29470266]
[1752957269809,0.06,177.81,177.77,3.01470266]
[1752957270105,6.85846362,177.82,177.78,2.29470266]
[1752957271003,6.85846362,177.82,177.78,3.01470266]
[1752957273708,0.06,177.81,177.78,3.01470266]
[1752957276234,0.06,177.81,177.8,2.29470266]
[1752957276922,0.06,177.81,177.8,3.01470266]
[1752957287213,0.06,177.81,177.8,2.29470266]
[1752957290443,0.06,177.81,177.8,3.01470266]
[1752957295047,0.06,177.81,177.8,3.04470266]
[1752957300872,0.06,177.81,177.8,25.75368359]
[1752957301485,0.06,177.84,177.81,88.00819727]
[1752957301633,0.06,177.86,177.85,16.78468397]
[1752957301834,5.68092667,177.91,177.88,42.78468397]
[1752957302054,0.06,177.91,177.88,84.15938663]
[1752957302234,5.68082699,177.91,177.88,84.82938663]
[1752957302580,0.06,177.91,177.88,84.82938663]
[1752957302875,5.68085745,177.91,177.88,45.74938663]
[1752957303178,5.62113869,177.9,177.88,86.11567032]
[1752957303344,5.62113869,177.9,177.88,3.58098635]
[1752957303861,5.62113869,177.9,177.88,0.67]
[1752957304239,5.62113869,177.9,177.86,3.58098635]
[1752957304437,4.20098635,177.88,177.84,0.67]
[1752957304630,3.58098635,177.87,177.84,0.67]
[1752957304832,4.20098635,177.87,177.83,39.08]
[1752957305054,4.20098635,177.87,177.83,39.75]
[1752957305271,4.20098635,177.87,177.83,65.75]
[1752957305687,5.62239964,177.86,177.83,39.75]
[1752957306066,5.62239964,177.86,177.84,26.67]
[1752957306570,5.62239964,177.86,177.84,26.0]
[1752957306777,5.62239964,177.86,177.85,0.67]
[1752957308290,5.62208354,177.87,177.85,0.67]
[1752957310889,9.20306989,177.87,177.84,26.0]
[1752957311071,9.82306989,177.87,177.84,26.0]
[1752957311764,3.58098635,177.85,177.8,0.03]
[1752957311965,3.58098635,177.83,177.8,0.03]
[1752957312175,4.20098635,177.83,177.8,0.03]
[1752957312371,3.58098635,177.82,177.81,26.0]
[1752957312785,19.6772924,177.87,177.81,26.67]
[1752957312786,3.58098635,177.84,177.81,26.67]
[1752957312976,5.62334814,177.83,177.81,26.67]
[1752957313893,3.58098635,177.87,177.82,4.25098635]
[1752957314094,2.1631,177.88,177.81,26.0]
[1752957314095,3.58098635,177.86,177.83,0.67]
[1752957315990,3.58098635,177.84,177.81,26.0]
[1752957316207,4.20098635,177.84,177.81,26.0]
[1752957316523,3.58098635,177.84,177.81,26.0]
[1752957316675,3.58098635,177.84,177.81,26.67]
[1752957317291,9.20404363,177.84,177.81,26.67]
[1752957318193,3.58098635,177.83,177.81,26.0]
[1752957318392,4.20098635,177.83,177.81,26.0]
[1752957318884,3.58098635,177.83,177.81,26.0]
[1752957319090,9.20460616,177.83,177.81,26.0]
[1752957320916,5.62361981,177.83,177.81,26.0]
[1752957321212,5.62361981,177.83,177.81,26.67]
[1752957321387,5.62361981,177.83,177.82,0.67]
[1752957322001,14.05624915,177.86,177.82,0.67]
[1752957322002,5.62239964,177.86,177.82,4.25098635]
[1752957322213,5.62239964,177.86,177.82,3.58098635]
[1752957322519,5.62239964,177.86,177.83,0.67]
[1752957324034,3.58098635,177.86,177.83,0.67]
[1752957324832,3.58098635,177.85,177.81,30.30098635]
[1752957324999,5.62303193,177.84,177.82,0.72]
[1752957326013,9.20381877,177.85,177.82,0.72]
[1752957326208,9.2034529,177.86,177.83,0.72]
[1752957326413,5.62246655,177.86,177.83,0.72]
[1752957326621,5.62246655,177.86,177.82,3.58098635]
[1752957326824,5.62246655,177.86,177.84,0.72]
[1752957327818,9.2034529,177.86,177.82,17.50468397]
[1752957328026,9.2034529,177.86,177.82,16.78468397]
[1752957328230,9.2034529,177.86,177.83,0.72]
[1752957329124,9.2034529,177.86,177.82,16.78468397]
[1752957329321,9.2034529,177.86,177.82,17.50468397]
[1752957329937,9.2034529,177.86,177.82,16.78468397]
[1752957330230,9.2034529,177.86,177.83,0.72]
[1752957331929,9.2034529,177.86,177.82,16.78468397]
[1752957332232,9.8234529,177.86,177.82,17.50468397]
[1752957332413,3.58098635,177.84,177.81,26.3]
[1752957332602,4.20098635,177.84,177.81,26.3]
[1752957333103,3.58098635,177.84,177.81,27.02]
[1752957333526,9.20418232,177.84,177.81,27.02]
[1752957335944,5.62319597,177.84,177.81,27.02]
[1752957336131,5.62319597,177.84,177.82,0.72]
[1752957336822,9.20418232,177.84,177.81,26.0]
[1752957337046,9.20418232,177.84,177.82,0.72]
[1752957337720,9.20418232,177.84,177.81,26.0]
[1752957337917,6.24319597,177.84,177.81,26.0]
[1752957338121,9.20418232,177.84,177.81,26.72]
[1752957338648,9.20418232,177.84,177.81,26.75]
[1752957341124,9.20418232,177.84,177.81,26.03]
[1752957341324,9.20418232,177.84,177.82,0.72]
[1752957342918,9.20418232,177.84,177.83,0.72]
[1752957343441,9.20418232,177.84,177.81,26.03]
[1752957343644,5.62319597,177.84,177.83,0.72]
[1752957344034,9.20418232,177.84,177.83,0.72]
[1752957346846,9.20418232,177.84,177.81,26.03]
[1752957347051,3.58098635,177.83,177.82,0.72]
[1752957347222,9.20418232,177.84,177.82,0.72]
[1752957348144,9.20418232,177.84,177.83,0.72]
[1752957349824,9.20418232,177.84,177.81,26.75]
[1752957350649,5.62319597,177.84,177.82,0.72]
[1752957350959,7.91770685,177.84,177.83,0.72]
[1752957351141,5.62319597,177.84,177.82,0.72]
[1752957351446,5.62319597,177.84,177.83,0.72]
[1752957351629,5.62319597,177.84,177.82,0.72]
[1752957356026,7.91732689,177.85,177.83,0.69]
[1752957356656,2.35451088,177.87,177.84,0.69]
[1752957356838,0.06,177.87,177.84,0.69]
[1752957358139,7.97668252,177.87,177.84,0.69]
[1752957358835,0.06,177.87,177.84,0.69]
[1752957359042,0.06,177.87,177.84,2.98451088]
[1752957359448,0.06,177.87,177.85,0.69]
[1752957360334,0.06,177.87,177.86,26.0]
[1752957360728,0.06,177.87,177.86,26.69]
[1752957361963,0.06,177.87,177.86,26.0]
[1752957362834,0.06,177.87,177.83,21.35754858]
[1752957363033,3.74286461,177.87,177.84,26.0]
[1752957363262,3.68286461,177.86,177.84,26.0]
[1752957364049,3.64286461,177.87,177.84,26.0]
[1752957364560,3.64286461,177.87,177.84,26.69]
[1752957365371,5.62239964,177.86,177.84,26.69]
[1752957365960,5.62239964,177.86,177.85,0.69]
[1752957367745,5.62239964,177.86,177.84,26.69]
[1752957368253,5.62239964,177.86,177.84,26.0]
[1752957368438,5.62239964,177.86,177.82,4.27286461]
[1752957368645,4.20286461,177.85,177.81,82.17468397]
[1752957368839,4.20286461,177.85,177.81,82.86468397]
[1752957369350,3.58286461,177.85,177.81,82.17468397]
[1752957369551,3.58286461,177.85,177.82,0.69]
[1752957369749,9.20526425,177.86,177.82,0.69]
[1752957369951,9.82526425,177.86,177.82,0.69]
[1752957371467,5.62239964,177.86,177.83,0.69]
[1752957372057,5.62239964,177.86,177.83,4.27286461]
[1752957372272,5.68208354,177.87,177.84,0.69]
[1752957373357,6.30208354,177.87,177.83,3.58286461]
[1752957373560,9.88494815,177.87,177.83,0.69]
[1752957375273,0.06,177.87,177.84,0.69]
[1752957376351,5.68208354,177.87,177.84,0.69]
[1752957380350,9.88494815,177.87,177.82,17.47468397]
[1752957380554,9.88494815,177.87,177.83,0.69]
[1752957380859,6.30208354,177.87,177.83,0.69]
[1752957381180,5.68208354,177.87,177.84,0.69]
[1752957382076,5.68208354,177.87,177.84,0.72]
[1752957383068,0.06,177.87,177.84,0.72]
[1752957383767,0.06,177.87,177.84,3.0137292]
[1752957384193,0.06,177.87,177.86,28.2937292]
[1752957384581,0.06,177.87,177.86,28.9837292]
[1752957385106,0.06,177.87,177.86,30.27218892]
[1752957385396,0.06,177.87,177.86,21.05687289]
[1752957385707,0.06,177.87,177.86,60.11687289]
[1752957386299,0.06,177.87,177.86,21.05687289]
[1752957386680,0.06,177.87,177.86,47.05687289]
[1752957386875,0.06,177.87,177.86,30.27218892]
[1752957387093,0.06,177.87,177.86,26.0]